bitfinex-derivatives/quotes_ETHF0:USTF0_20250530
["timestamp","ask_amount","ask_price","bid_price","bid_amount"]
[1748626142672,0.00588281,2548.9,2548.8,5.04854]
[1748626143881,0.00588281,2548.9,2548.8,8.25634]
[1748626144080,0.00588281,2548.9,2548.8,9.53984]
[1748626144778,0.00588281,2548.9,2548.8,8.25534]
[1748626145885,2.14939281,2548.9,2548.8,7.4708]
[1748626146085,2.78109281,2548.9,2548.8,7.4708]
[1748626146384,2.78109281,2548.9,2548.8,8.25534]
[1748626146882,2.78109281,2548.9,2548.8,7.4708]
[1748626147082,5.98889281,2548.9,2548.8,4.263]
[1748626148776,1.99658281,2548.9,2548.8,5.04754]
[1748626149285,2.78109281,2548.9,2548.8,5.04754]
[1748626149687,1.99658281,2548.9,2548.8,5.04754]
[1748626149884,1.99658281,2548.9,2548.8,4.255]
[1748626150093,3.43619281,2548.9,2548.8,4.255]
[1748626151387,3.43619281,2548.9,2548.8,5.03954]
[1748626152791,3.43619281,2548.9,2548.8,4.255]
[1748626152989,2.65168281,2548.9,2548.8,5.03954]
[1748626153191,3.43619281,2548.9,2548.8,5.03954]
[1748626153488,2.65168281,2548.9,2548.8,5.03954]
[1748626154280,1.99658281,2548.9,2548.8,5.03954]
[1748626154481,1.99658281,2548.9,2548.8,4.255]
[1748626154687,2.78109281,2548.9,2548.8,4.255]
[1748626155492,2.97699281,2548.9,2548.8,4.255]
[1748626155686,2.97699281,2548.9,2548.8,5.03954]
[1748626155992,2.19248281,2548.9,2548.8,5.03954]
[1748626156185,2.97699281,2548.9,2548.8,4.255]
[1748626157292,0.20178281,2548.9,2548.8,5.03954]
[1748626157890,0.20178281,2548.9,2548.8,6.93344]
[1748626158488,0.20178281,2548.9,2548.8,10.14124]
[1748626159690,2.1352,2549.3,2549.1,0.78442]
[1748626159888,2.1352,2549.3,2549.2,5.03942]
[1748626160083,1.3508,2549.3,2549.2,8.24722]
[1748626160497,0.78434,2549.5,2549.2,7.4628]
[1748626160691,2.13514,2549.5,2549.4,0.78436]
[1748626160886,2.13514,2549.5,2549.2,8.09668281]
[1748626161087,2.13514,2549.5,2549.3,0.78437]
[1748626161293,1.3508,2549.5,2549.2,8.09668281]
[1748626161488,2.13513,2549.5,2549.4,0.78436]
[1748626161791,0.78439,2549.3,2549.2,7.46868281]
[1748626161988,0.78439,2549.3,2549.2,4.26088281]
[1748626162193,3.99219,2549.3,2549.2,4.26088281]
[1748626162391,0.78439,2549.3,2549.2,4.26088281]
[1748626163196,3.99219,2549.3,2549.2,4.26088281]
[1748626163796,0.78439,2549.3,2549.2,4.26088281]
[1748626164596,3.99219,2549.3,2549.2,4.26088281]
[1748626166394,8.99219,2549.3,2549.2,0.00588281]
[1748626166591,0.78451,2548.9,2548.8,4.254]
[1748626166792,0.78461,2548.6,2548.5,9.73030646]
[1748626167490,0.78461,2548.6,2548.5,10.51494646]
[1748626167892,0.78461,2548.6,2548.5,9.73030646]
[1748626168191,0.78467,2548.4,2548.3,0.00588281]
[1748626168497,0.78467,2548.4,2548.3,4.25988281]
[1748626169291,5.78467,2548.4,2548.3,0.00588281]
[1748626171501,0.78467,2548.4,2548.3,0.00588281]
[1748626175299,0.78467,2548.4,2548.3,2.81e-06]
[1748626175702,0.78482,2547.9,2547.8,4.255]
[1748626176500,2.07452,2547.9,2547.8,4.255]
[1748626178206,2.07452,2547.9,2547.8,3.46243]
[1748626183209,5.28232,2547.9,2547.8,3.46243]
[1748626184206,0.78488,2547.7,2547.6,0.00588281]
[1748626184408,0.78488,2547.7,2547.6,2.81e-06]
[1748626184900,2.07418,2547.7,2547.6,2.81e-06]
[1748626187910,0.78491,2547.6,2547.5,2.81e-06]
[1748626188108,5.26741,2547.6,2547.5,2.81e-06]
[1748626190113,5.26741,2547.6,2547.5,0.06994138]
[1748626191113,3.99271,2547.6,2547.5,0.06994138]
[1748626193614,3.99271,2547.6,2547.5,0.85488138]
[1748626193811,0.78491,2547.6,2547.5,0.06994138]
[1748626194012,0.78491,2547.6,2547.5,0.06993857]
[1748626194211,0.78491,2547.6,2547.5,2.17097857]
[1748626195117,0.78491,2547.6,2547.5,1.38603857]
[1748626197809,0.78491,2547.6,2547.5,0.06993857]
[1748626198619,0.78491,2547.6,2547.5,2.20377857]
[1748626198826,0.78491,2547.6,2547.5,1.41883857]
[1748626199610,0.78491,2547.6,2547.5,2.20377857]
[1748626199816,0.78491,2547.6,2547.5,1.41883857]
[1748626200416,0.78491,2547.6,2547.5,0.06993857]
[1748626200617,3.99271,2547.6,2547.5,0.06993857]
[1748626201318,0.78491,2547.7,2547.5,0.06993857]
[1748626201519,0.78485,2547.9,2547.8,0.78485]
[1748626201817,0.78485,2547.9,2547.8,5.03285]
[1748626202617,0.78482,2547.9,2547.8,5.5134]
[1748626202921,0.78482,2548.0,2547.8,5.5134]
[1748626203122,0.78482,2547.9,2547.8,6.29824]
[1748626203314,0.78482,2547.9,2547.8,4.248]
[1748626204324,3.99262,2547.9,2547.8,4.248]
[1748626204523,4.62262,2547.9,2547.8,4.248]
[1748626204921,1.41482,2547.9,2547.8,4.248]
[1748626205327,0.78482,2547.9,2547.8,4.248]
[1748626206123,3.99262,2547.9,2547.8,4.248]
[1748626206325,0.78494,2547.5,2547.4,0.6759]
[1748626206624,0.78494,2547.5,2547.4,4.9239]
[1748626206824,0.78494,2547.5,2547.4,5.70887]
[1748626207225,0.78494,2547.5,2547.4,4.9239]
[1748626207425,0.78494,2547.5,2547.4,7.01097]
[1748626207620,0.78491,2547.7,2547.6,0.7849]
[1748626208025,3.30673,2548.0,2547.7,0.78487]
[1748626208223,3.2078,2548.2,2547.9,0.7848]
[1748626208424,0.6593,2548.4,2548.0,2.5853]
[1748626208628,0.6595,2548.6,2548.1,5.1697]
[1748626208933,0.78467,2548.4,2548.3,0.78468]
[1748626209231,0.78467,2548.4,2548.3,4.4826]
[1748626209428,0.78467,2548.4,2548.3,5.2673]
[1748626209624,0.00588281,2548.6,2548.3,4.4826]
[1748626209835,0.00588281,2548.6,2548.5,0.78464]
[1748626210425,0.78455,2548.8,2548.3,6.44432]
[1748626210729,0.78455,2548.8,2548.7,3.2078]
[1748626210930,1.96108,2549.2,2548.7,8.22837]
[1748626211123,0.78451,2548.9,2548.8,1.9199]
[1748626211333,5.46513885,2550.4,2548.8,20.5589]
[1748626211526,1.3083,2550.3,2549.4,3.2078]
[1748626211725,1.3083,2550.3,2549.5,4.236]
[1748626211726,0.7843,2549.6,2549.5,4.236]
[1748626212333,0.78439,2549.3,2549.2,1.2837]
[1748626212534,0.78438,2549.4,2549.2,5.5187]
[1748626212838,3.21368281,2549.8,2549.4,0.78436]
[1748626212839,0.78434,2549.5,2549.4,0.78436]
[1748626213133,0.78439,2549.3,2549.2,4.235]
[1748626213335,2.59797,2549.7,2549.2,5.0194]
[1748626213533,0.78439,2549.4,2549.2,5.0194]
[1748626213737,0.78439,2549.4,2549.2,6.3031]
[1748626214033,1.3378,2549.6,2549.2,5.5187]
[1748626214226,0.78438,2549.4,2549.2,6.30311]
[1748626214420,0.78434,2549.5,2549.4,0.78436]
[1748626214620,2.12213,2549.6,2549.4,0.78436]
[1748626214830,1.3378,2549.6,2549.3,2.05447]
[1748626215032,0.78442,2549.2,2549.1,3.2078]
[1748626215233,0.78442,2549.2,2549.1,7.4418]
[1748626215727,0.78442,2549.2,2549.1,4.234]
[1748626216231,5.78442,2549.2,2549.1,4.234]
[1748626216437,0.78457,2548.7,2548.4,3.2078]
[1748626216626,0.78457,2548.7,2548.6,4.23988281]
[1748626217823,1.9549,2549.1,2548.8,0.78454]
[1748626218028,0.78454,2548.9,2548.8,0.78454]
[1748626218538,0.78454,2548.8,2548.7,3.99236]
[1748626218735,0.78454,2548.8,2548.7,3.2078]
[1748626218931,0.78454,2548.9,2548.8,0.78453]
[1748626219134,0.78454,2548.8,2548.7,3.99235]
[1748626219338,0.78454,2548.8,2548.7,3.2078]
[1748626220335,0.78457,2548.7,2548.6,4.23988281]
[1748626220531,0.78457,2548.7,2548.6,5.02449281]
[1748626220738,0.78457,2548.7,2548.6,4.23988281]
[1748626220938,3.91606,2549.1,2548.8,0.78453]
[1748626220939,0.78454,2548.9,2548.8,0.78453]
[1748626221242,1.96109,2549.2,2548.7,3.2078]
[1748626221427,0.78454,2548.8,2548.7,3.2078]
[1748626221837,0.78457,2548.7,2548.6,4.23988281]
[1748626222429,3.99237,2548.7,2548.6,0.00588281]
[1748626222627,8.99237,2548.7,2548.6,2.81e-06]
[1748626222825,0.78482,2547.9,2547.8,4.234]
[1748626223640,0.78482,2547.9,2547.8,5.01885]
[1748626223842,2.11122,2547.9,2547.8,4.234]
[1748626226351,0.7848,2548.0,2547.8,4.234]
[1748626226639,0.00588281,2548.1,2548.0,0.78479]
[1748626226832,0.78482,2547.9,2547.8,7.4418]
[1748626227430,0.78488,2547.7,2547.6,0.00588281]
[1748626227630,0.78488,2547.7,2547.6,4.24088281]
[1748626228139,0.78488,2547.7,2547.6,5.02579281]
[1748626228338,0.78488,2547.8,2547.7,0.78488]
[1748626228542,0.00588281,2548.1,2547.8,0.78484]
[1748626228734,0.78488,2547.7,2547.6,5.02577281]
[1748626228932,0.00588281,2548.1,2547.6,4.24088281]
[1748626229137,0.78483,2547.9,2547.8,0.78484]
[1748626229641,0.78486,2547.8,2547.7,0.78486]
[1748626229842,0.00588281,2548.1,2547.6,4.24088281]
[1748626230045,1.32768281,2548.1,2547.7,1.326]
[1748626230248,0.78484,2547.9,2547.8,0.78483]
[1748626230438,0.78485,2547.8,2547.7,1.326]
[1748626230641,0.78488,2547.7,2547.6,7.44868281]
[1748626230838,0.78504,2547.2,2547.1,0.6588]
[1748626231143,0.78503,2547.3,2547.2,0.78503]
[1748626231343,2.6588,2547.6,2547.2,3.2078]
[1748626231646,1.96779281,2548.1,2547.5,3.2078]
[1748626231938,0.00588281,2548.1,2548.0,0.78479]
[1748626232140,2.6572,2548.5,2548.0,4.235]
[1748626232344,0.78471,2548.3,2548.2,3.99252]
[1748626232545,0.78471,2548.3,2548.2,3.2078]
[1748626232944,0.78471,2548.3,2548.2,3.8298]
[1748626233743,0.78471,2548.3,2548.2,4.61453]
[1748626234045,0.7847,2548.3,2548.2,3.8298]
[1748626234247,0.7847,2548.3,2548.2,4.61453]
[1748626234445,0.78468,2548.4,2548.3,0.78467]
[1748626234644,0.00588281,2548.5,2548.4,0.78467]
[1748626234845,0.78451,2548.9,2548.8,0.78452]
[1748626235038,0.78451,2548.9,2548.8,4.235]
[1748626236345,0.78454,2548.8,2548.7,4.235]
[1748626236534,1.2917,2548.9,2548.6,4.235]
[1748626236535,0.78457,2548.7,2548.6,4.235]
[1748626236737,0.78457,2548.7,2548.6,5.0196]
[1748626236942,3.21368281,2549.1,2548.6,4.235]
[1748626237247,0.78457,2548.7,2548.6,4.235]
[1748626237637,0.00588281,2549.1,2548.7,1.96144]
[1748626237834,0.00588281,2549.1,2549.0,3.99228]
[1748626238050,0.00588281,2549.1,2549.0,8.21828]
[1748626238646,1.2917,2549.5,2549.4,0.78436]
[1748626238833,2.5577,2549.8,2549.4,3.2078]
[1748626239038,0.78425,2549.8,2549.7,0.78427]
[1748626239240,0.78427,2549.7,2549.6,0.78427]
[1748626239647,0.7843,2549.6,2549.5,2.7544]
[1748626239950,0.00588281,2549.9,2549.5,1.9701]
[1748626240247,0.78433,2549.5,2549.4,3.2078]
[1748626241354,2.05893,2549.5,2549.4,3.2078]
[1748626242750,0.78436,2549.4,2549.3,4.225]
[1748626243348,0.78436,2549.4,2549.3,5.00939]
[1748626243549,0.78436,2549.4,2549.3,4.225]
[1748626243948,0.78436,2549.4,2549.3,5.00939]
[1748626244251,0.78436,2549.4,2549.3,4.225]
[1748626245553,3.28181,2549.4,2549.0,3.2078]
[1748626245746,0.78445,2549.1,2549.0,3.2078]
[1748626246051,0.78451,2548.9,2548.6,6.3127]
[1748626246345,0.7844,2549.3,2549.2,0.78439]
[1748626246545,3.91607,2549.6,2549.1,4.224]
[1748626246848,0.78442,2549.2,2549.1,4.224]
[1748626247446,0.78442,2549.2,2549.1,5.00845]
[1748626247743,0.78442,2549.2,2549.1,4.224]
[1748626249250,3.2078,2549.5,2549.1,4.224]
[1748626249554,0.78434,2549.5,2549.4,0.78433]
[1748626249751,0.78436,2549.4,2549.3,3.2078]
[1748626249952,0.78436,2549.4,2549.3,4.5069]
[1748626251152,0.78436,2549.4,2549.3,1.2991]
[1748626251353,0.78436,2549.4,2549.3,4.5069]
[1748626251746,0.78436,2549.4,2549.3,3.2078]
[1748626254951,0.79318503,2549.4,2549.3,3.2078]
[1748626256049,0.78442,2549.2,2549.1,4.224]
[1748626256253,0.78451,2548.9,2548.8,0.00588281]
[1748626259657,0.98061,2548.9,2548.8,0.00588281]
[1748626260958,5.98061,2548.9,2548.8,0.00588281]
[1748626261459,9.18841,2548.9,2548.8,2.81e-06]
[1748626264165,10.44751,2548.9,2548.8,2.81e-06]
[1748626264369,10.44751,2548.9,2547.7,5.47630646]
[1748626264370,0.78473,2548.2,2548.1,1.38e-06]
[1748626264563,3.99253,2548.2,2548.1,1.38e-06]
[1748626264763,8.99253,2548.2,2548.1,1.38e-06]
[1748626264963,10.25163,2548.2,2548.1,1.38e-06]
[1748626265165,5.25163,2548.2,2548.1,1.38e-06]
[1748626265362,0.78479,2548.0,2547.9,0.00588281]
[1748626266970,5.78479,2548.0,2547.9,2.81e-06]
[1748626267265,0.78479,2548.0,2547.9,2.81e-06]
[1748626267962,5.78479,2548.0,2547.9,2.81e-06]
[1748626270668,9.58279,2548.0,2547.9,2.81e-06]
[1748626271765,0.78526,2546.5,2546.4,7.4278]
[1748626272661,0.78526,2546.5,2546.4,8.6805]
[1748626273266,3.99306,2546.5,2546.4,1.2527]
[1748626273464,0.78532,2546.3,2546.2,0.66658281]
[1748626273666,0.78532,2546.3,2546.2,1.91928281]
[1748626274471,0.78532,2546.3,2546.2,5.12708281]
[1748626274671,0.78532,2546.3,2546.2,5.91243281]
[1748626274968,0.78531,2546.4,2546.3,0.78529]
[1748626275175,0.78531,2546.4,2546.3,1.3044]
[1748626275572,0.00588281,2546.7,2546.6,0.78523]
[1748626275969,0.79108281,2546.7,2546.6,0.78523]
[1748626276174,0.79108281,2546.7,2546.6,2.08963]
[1748626276676,0.78504,2547.3,2547.2,0.78503]
[1748626276868,0.78514,2546.9,2546.8,3.2078]
[1748626277179,0.78514,2546.9,2546.8,1.9695]
[1748626277479,0.78509,2547.1,2547.0,0.78508]
[1748626277777,0.78508,2547.2,2547.1,0.78506]
[1748626277977,0.78508,2547.1,2547.0,3.99289]
[1748626278378,0.78508,2547.1,2547.0,3.2078]
[1748626278579,0.78508,2547.1,2547.0,3.99291]
[1748626278894,0.78508,2547.1,2547.0,7.4288]
[1748626279188,0.79091281,2547.3,2547.2,0.78504]
[1748626279482,0.00588281,2547.3,2547.2,0.78504]
[1748626279672,0.79089281,2547.3,2547.2,0.78504]
[1748626279984,0.00588281,2547.3,2547.2,0.78504]
[1748626280175,0.78504,2547.2,2547.1,0.85499857]
[1748626280376,0.78504,2547.2,2547.1,0.06993857]
[1748626284679,0.79093281,2547.3,2547.1,0.06993857]
[1748626284879,0.78505,2547.2,2547.1,0.85500857]
[1748626285074,0.79093281,2547.3,2547.1,0.06993857]
[1748626285381,0.00588281,2547.3,2547.2,4.61565]
[1748626285577,0.79090281,2547.3,2547.2,0.6228]
[1748626285778,0.79090281,2547.3,2547.2,1.40785]
[1748626285984,0.00588281,2547.3,2547.2,4.61565]
[1748626286284,0.79090281,2547.3,2547.2,4.61565]
[1748626286686,0.98710281,2547.3,2547.2,4.61565]
[1748626286880,0.98710281,2547.3,2547.2,3.8306]
[1748626287082,0.78505,2547.2,2547.1,0.06993857]
[1748626288479,0.20208281,2547.3,2547.2,0.78505]
[1748626288675,0.20208281,2547.3,2547.2,5.68175]
[1748626288881,0.98710281,2547.3,2547.2,4.8967]
[1748626289182,0.98710281,2547.3,2547.2,6.2229]
[1748626289582,0.98710281,2547.3,2547.2,7.00795]
[1748626290181,0.20208281,2547.3,2547.2,7.00795]
[1748626290885,0.98710281,2547.3,2547.2,6.2229]
[1748626291385,0.98710281,2547.3,2547.2,7.00795]
[1748626291586,0.98710281,2547.3,2547.2,6.2229]
[1748626291984,0.78505,2547.2,2547.1,0.06993857]
[1748626292384,2.12885,2547.2,2547.1,0.06993857]
[1748626293893,2.12885,2547.2,2547.1,8.57e-06]
[1748626294484,10.92685,2547.2,2547.1,8.57e-06]
[1748626294684,0.78538,2546.3,2546.2,2.81e-06]
[1748626294891,0.78575,2545.1,2545.0,7.79024369]
[1748626295186,0.78575,2545.1,2545.0,4.54802369]
[1748626295388,5.78575,2545.1,2545.0,1.63343369]
[1748626295581,7.11465,2545.1,2545.0,1.63343369]
[1748626295987,2.11465,2545.1,2545.0,1.63343369]
[1748626296387,2.11465,2545.1,2544.8,0.00588281]
[1748626296388,0.78582,2544.9,2544.8,0.00588281]
[1748626296586,5.1729,2544.2,2541.9,5.1746]
[1748626296790,3.2078,2543.2,2542.2,0.07867201]
[1748626296987,3.2078,2543.2,2542.3,4.222]
[1748626297293,3.99415,2543.2,2542.4,0.07866582]
[1748626297491,3.2078,2543.0,2542.8,0.78647]
[1748626297690,3.2078,2543.0,2542.9,5.08708035]
[1748626297893,3.2078,2543.0,2542.9,5.25408035]
[1748626298088,0.00589449,2543.1,2542.9,10.25407035]
[1748626298288,0.00589449,2543.1,2543.0,0.86505726]
[1748626298591,3.2078,2543.6,2543.0,3.28644726]
[1748626299196,3.99403,2543.6,2543.1,3.2078]
[1748626299391,3.99993449,2543.6,2543.1,3.99416]
[1748626299590,3.21369449,2543.6,2543.1,3.2078]
[1748626299997,0.00589449,2543.6,2543.5,0.78625]
[1748626300193,0.00589449,2543.6,2543.5,5.17625]
[1748626300392,0.00589449,2543.6,2543.5,10.17625]
[1748626300601,0.20239449,2543.6,2543.5,9.39]
[1748626300799,0.20239449,2543.6,2543.5,10.17625]
[1748626301098,0.20239449,2543.6,2543.5,13.38405]
[1748626301502,0.20239449,2543.6,2543.5,10.17625]
[1748626301803,0.20239449,2543.6,2543.5,13.38405]
[1748626302790,3.2078,2544.5,2544.4,0.78597]
[1748626302993,3.2078,2544.5,2544.4,4.391]
[1748626303194,3.2078,2544.5,2544.4,5.17697]
[1748626303398,3.2078,2544.8,2544.4,9.391]
[1748626303588,3.2078,2544.8,2544.4,4.391]
[1748626303795,3.2078,2544.8,2544.7,0.78588]
[1748626304390,3.2078,2544.8,2544.5,1.3226]
[1748626304799,3.2078,2544.8,2544.6,0.78589]
[1748626305000,3.2078,2544.8,2544.7,0.78588]
[1748626305299,3.2078,2544.8,2544.5,1.3226]
[1748626305604,3.2078,2544.8,2544.4,4.391]
[1748626305807,0.78593,2544.6,2544.4,4.391]
[1748626305994,1.3513,2544.5,2544.4,5.17697]
[1748626306300,1.3513,2544.5,2544.4,4.391]
[1748626306504,1.3513,2544.5,2544.4,5.17697]
[1748626306696,3.2078,2544.8,2544.7,0.78588]
[1748626307101,0.20229449,2544.9,2544.8,0.78585]
[1748626307304,0.20229449,2544.9,2544.8,5.17685]
[1748626308806,0.98811449,2544.9,2544.8,4.391]
[1748626309000,2.33451449,2544.9,2544.8,4.391]
[1748626310094,2.33451449,2544.9,2544.8,5.24678857]
[1748626310095,1.54869449,2544.9,2544.8,5.24678857]
[1748626310697,0.20229449,2544.9,2544.8,5.24678857]
[1748626311795,0.20229449,2544.9,2544.8,10.24678857]
[1748626313702,3.2078,2545.4,2545.3,0.7857]
[1748626313905,3.2078,2545.4,2545.3,5.1767]
[1748626314207,4.528,2545.8,2545.7,0.78557]
[1748626314412,3.2078,2545.8,2545.7,0.78557]
[1748626314810,3.2078,2545.8,2545.7,4.391]
[1748626315109,0.79139449,2546.0,2545.8,0.78553]
[1748626315311,0.78554,2545.8,2545.7,4.391]
[1748626315708,5.32663,2545.9,2545.7,5.17657]
[1748626316013,5.52273,2545.9,2545.8,0.78554]
[1748626316214,5.52273,2545.9,2545.7,5.17656]
[1748626316409,0.78554,2545.8,2545.7,5.17656]
[1748626316609,0.78554,2545.8,2545.7,6.50876]
[1748626316812,0.78554,2545.8,2545.7,5.17656]
[1748626317011,0.78557,2545.7,2545.6,0.00589449]
[1748626317215,2.11887,2545.7,2545.6,0.00589449]
[1748626318216,2.11887,2545.7,2545.6,0.79149449]
[1748626318415,2.11887,2545.7,2545.6,0.00589449]
[1748626321121,1.96422,2545.4,2545.1,4.391]
[1748626321421,10.26132,2545.7,2545.0,5.17676]
[1748626321422,0.78576,2545.1,2545.0,5.17676]
[1748626321719,3.2078,2545.5,2545.4,0.78567]
[1748626322410,3.2078,2545.5,2545.4,5.17667]
[1748626322811,3.99344,2545.5,2545.4,5.17667]
[1748626323316,3.2078,2545.5,2545.4,5.17667]
[1748626324018,3.99344,2545.5,2545.4,4.391]
[1748626324319,3.2078,2545.5,2545.4,4.391]
[1748626324816,3.99344,2545.5,2545.4,4.391]
[1748626325217,3.2078,2545.5,2545.4,5.17667]
[1748626325422,3.2078,2545.5,2545.4,5.24660857]
[1748626325622,3.99344,2545.5,2545.4,5.24660857]
[1748626325922,5.26914,2545.5,2545.4,4.46093857]
[1748626326424,5.26914,2545.5,2545.4,4.391]
[1748626327724,0.7857,2545.3,2545.2,0.00589449]
[1748626328026,0.7857,2545.3,2545.2,0.79162449]
[1748626328519,1.2935,2545.3,2545.2,0.79162449]
[1748626329323,2.0792,2545.3,2545.2,0.79162449]
[1748626329523,1.2935,2545.3,2545.2,0.79162449]
[1748626329726,2.0792,2545.3,2545.2,0.00589449]
[1748626330020,1.2935,2545.3,2545.2,0.79162449]
[1748626330319,3.99345,2545.5,2545.2,0.00589449]
[1748626330526,3.99345,2545.5,2545.4,0.78567]
[1748626330727,5.34125,2545.5,2545.4,0.78567]
[1748626331826,0.7857,2545.4,2545.3,0.78568]
[1748626332018,2.1335,2545.4,2545.3,0.78568]
[1748626332222,1.3478,2545.4,2545.3,0.7857]
[1748626332725,3.99345,2545.5,2545.4,0.78567]
[1748626332921,0.7857,2545.3,2545.2,0.79159449]
[1748626333424,4.4973,2545.5,2545.2,0.00589449]
[1748626333623,4.61175,2545.8,2545.7,0.78557]
[1748626333927,4.61175,2545.8,2545.7,4.341]
[1748626334422,5.27545,2545.8,2545.7,4.341]
[1748626338631,5.27545,2545.8,2545.7,5.12657]
[1748626339226,4.61175,2545.8,2545.7,5.12657]
[1748626339429,3.8262,2545.8,2545.7,5.12657]
[1748626339630,3.99334,2545.8,2545.7,5.12657]
[1748626339919,3.99334,2545.8,2545.7,4.341]
[1748626340131,8.2078,2545.8,2545.2,0.79161449]
[1748626340335,0.7857,2545.3,2545.2,0.79161449]
[1748626340535,0.7857,2545.3,2545.2,5.13261449]
[1748626340736,2.0878,2545.3,2545.2,4.34689449]
[1748626341628,2.0878,2545.3,2545.2,0.00589449]
[1748626341828,0.78579,2545.0,2544.9,4.341]
[1748626342029,0.78591,2544.6,2544.5,9.77030959]
[1748626342331,3.99371,2544.6,2544.5,9.77030959]
[1748626342831,3.99371,2544.6,2544.5,4.341]
[1748626343228,5.29171,2544.6,2544.5,4.341]
[1748626344738,2.08391,2544.6,2544.5,4.341]
[1748626344933,3.2078,2544.9,2544.7,0.78588]
[1748626345234,1.2617,2545.0,2544.5,4.341]
[1748626345436,0.78584,2544.9,2544.8,0.78583]
[1748626345628,0.78584,2544.9,2544.8,5.12683]
[1748626345832,4.4695,2545.0,2544.8,5.12683]
[1748626346130,3.2078,2545.0,2544.9,0.78582]
[1748626346335,3.2078,2545.0,2544.9,2.01622]
[1748626346634,3.99359,2545.0,2544.9,4.341]
[1748626346836,3.99359,2545.0,2544.9,5.12682]
[1748626347032,3.2078,2545.0,2544.9,5.12682]
[1748626347437,3.99359,2545.0,2544.9,4.341]
[1748626349532,3.2078,2545.0,2544.9,5.12682]
[1748626349736,3.99345,2545.5,2545.4,0.78567]
[1748626349936,3.99344,2545.5,2545.4,5.12767]
[1748626350132,3.2078,2545.8,2545.4,4.342]
[1748626350333,0.78564,2545.5,2545.4,4.342]
[1748626350540,0.78564,2545.5,2545.4,5.12767]
[1748626350935,0.78564,2545.5,2545.4,4.342]
[1748626351738,3.2078,2545.5,2544.6,3.2078]
[1748626351937,1.96402,2545.6,2544.6,3.2078]
[1748626351938,0.78582,2544.9,2544.7,0.78586]
[1748626352244,0.78582,2544.9,2544.8,43.949]
[1748626352535,0.78582,2544.9,2544.8,39.607]
[1748626352840,0.78582,2544.9,2544.8,43.949]
[1748626353139,0.78582,2544.9,2544.8,39.607]
[1748626353346,0.78582,2544.9,2544.8,43.949]
[1748626353537,3.99362,2544.9,2544.8,43.949]
[1748626354835,3.99362,2544.9,2544.8,44.01893857]
[1748626355142,0.78582,2544.9,2544.8,44.01893857]
[1748626355638,0.78582,2544.9,2544.8,46.12778857]
[1748626355840,0.78582,2544.9,2544.8,45.272]
[1748626356034,3.99362,2544.9,2544.8,43.949]
[1748626356737,3.99362,2544.9,2544.8,44.01893857]
[1748626357542,3.2078,2545.2,2544.8,44.01893857]
[1748626357734,0.78581,2545.0,2544.9,0.7858]
[1748626357935,0.78581,2545.0,2544.9,2.0604]
[1748626358436,3.2078,2545.2,2544.9,2.0604]
[1748626358437,3.2078,2545.2,2544.9,1.2746]
[1748626358638,0.78571,2545.3,2545.2,0.7857]
[1748626358839,0.78571,2545.3,2545.2,5.0727]
[1748626359034,3.2078,2545.4,2544.9,1.2746]
[1748626359343,0.78582,2544.9,2544.8,39.607]
[1748626359545,0.78582,2544.9,2544.8,43.894]
[1748626359841,0.78582,2544.9,2544.8,44.74978857]
[1748626360037,3.2078,2545.4,2544.8,43.96393857]
[1748626360239,0.78571,2545.3,2545.2,0.7857]
[1748626360536,0.78571,2545.3,2545.2,5.0727]
[1748626360537,2.11441,2545.3,2545.2,5.0727]
[1748626360742,2.11441,2545.3,2545.2,4.287]
[1748626360947,1.3287,2545.3,2545.2,5.07273]
[1748626361337,2.1144,2545.3,2545.2,5.07273]
[1748626361537,1.3287,2545.3,2545.2,5.07273]
[1748626361746,3.99348,2545.4,2545.3,0.7857]
[1748626362045,0.7857,2545.3,2545.2,5.07271]
[1748626362246,3.2078,2545.4,2545.3,0.7857]
[1748626362840,0.78557,2545.7,2545.6,0.78558]
[1748626363145,3.2078,2545.8,2545.7,0.78557]
[1748626363440,3.2078,2545.8,2545.7,2.03187]
[1748626363839,0.00589449,2546.0,2545.9,0.78551]
[1748626364244,3.2078,2546.9,2546.3,0.78539]
[1748626364438,3.2078,2546.9,2546.4,4.287]
[1748626364644,3.2078,2546.9,2546.7,0.78524]
[1748626364845,3.2078,2546.9,2546.8,5.07223]
[1748626365042,3.993,2546.9,2546.8,4.287]
[1748626365340,4.4958,2546.9,2546.8,5.07223]
[1748626365641,0.79105449,2547.1,2546.8,4.287]
[1748626365840,0.78517,2547.0,2546.9,0.78519]
[1748626366045,0.00589449,2547.1,2547.0,0.78517]
[1748626368439,3.2078,2547.6,2547.5,0.78502]
[1748626368637,3.2078,2547.6,2547.5,5.07102]
[1748626369039,3.2078,2547.9,2547.5,4.286]
[1748626369243,0.78494,2547.8,2547.6,0.78496]
[1748626369437,1.2424,2547.8,2547.7,0.78496]
[1748626369943,0.78491,2547.9,2547.8,0.78492]
[1748626370147,0.00589449,2548.0,2547.5,8.7253]
[1748626370448,0.00589449,2548.0,2547.9,0.7849]
[1748626370644,0.00589449,2548.0,2547.9,5.0709]
[1748626371146,0.78475,2548.4,2547.9,9.286]
[1748626371350,0.78477,2548.3,2548.0,1.2315]
[1748626371535,2.02716,2548.4,2548.2,0.78478]
[1748626371741,2.02716,2548.4,2548.3,4.285]
[1748626372752,1.2424,2548.4,2548.3,4.285]
[1748626372952,2.02714,2548.4,2548.3,4.285]
[1748626373250,1.2424,2548.4,2548.3,4.285]
[1748626373450,1.2424,2548.4,2548.2,4.285]
[1748626373651,0.7848,2548.2,2548.1,4.285]
[1748626373852,3.9926,2548.2,2548.1,4.285]
[1748626375857,1.96217,2548.0,2547.4,1.40452449]
[1748626376061,3.2078,2547.9,2547.5,4.284]